fUSD/lending_fUSD_20250313
["ID","MTS","AMOUNT","RATE_DAILY","PERIOD"]
[356044037,1741834238645,-592.14361496,9.9e-05,2]
[356044038,1741834238673,-1334.35403816,9.9e-05,2]
[356044045,1741834240298,-4608.9748208,9.9e-05,2]
[356044046,1741834240310,-43424.12720908,9.9e-05,2]
[356044047,1741834240319,-498.0855,9.9e-05,2]
[356044048,1741834240332,-2902.981,9.9e-05,2]
[356044049,1741834240341,-197.428,9.9e-05,2]
[356044050,1741834240350,-5000.0,9.9e-05,2]
[356044051,1741834240360,-231.51,9.903e-05,2]
[356044052,1741834240369,-152.35862146,9.973e-05,2]
[356044053,1741834240379,-551.30704733,9.999e-05,2]
[356044054,1741834240388,-350.0,9.999e-05,2]
[356044055,1741834240398,-500.0,9.999e-05,2]
[356044056,1741834240407,-500.0,9.999e-05,2]
[356044057,1741834240417,-500.0,9.999e-05,2]
[356044058,1741834240427,-500.0,9.999e-05,2]
[356044059,1741834240437,-500.0,9.999e-05,2]
[356044060,1741834240447,-500.0,9.999e-05,2]
[356044061,1741834240456,-500.0,9.999e-05,2]
[356044062,1741834240466,-500.0,9.999e-05,2]
[356044063,1741834240475,-500.0,9.999e-05,2]
[356044064,1741834240485,-500.0,9.999e-05,2]
[356044065,1741834240494,-500.0,9.999e-05,2]
[356044066,1741834240503,-500.0,9.999e-05,2]
[356044067,1741834240513,-500.0,9.999e-05,2]
[356044068,1741834240522,-410.10128621,9.999e-05,2]
[356044069,1741834240531,-500.0,9.999e-05,2]
[356044070,1741834240541,-500.0,9.999e-05,2]
[356044071,1741834240550,-500.0,9.999e-05,2]
[356044072,1741834240559,-500.0,9.999e-05,2]
[356044073,1741834240568,-500.0,9.999e-05,2]
[356044074,1741834240577,-413.86452809,9.999e-05,2]
[356044075,1741834240586,-500.0,9.999e-05,2]
[356044076,1741834240596,-500.0,9.999e-05,2]
[356044077,1741834240605,-500.0,9.999e-05,2]
[356044078,1741834240614,-500.0,9.999e-05,2]
[356044079,1741834240623,-150.0,9.999e-05,2]
[356044080,1741834240632,-1563.0,0.0001,2]
[356044081,1741834240641,-385.85993049,0.0001,2]
[356044082,1741834240650,-179870.35480548,0.0001,2]
[356044083,1741834240660,-195864.11277429,0.0001,2]
[356044084,1741834240669,-348339.31654118,0.0001,2]
[356044085,1741834240681,-2482.0,0.0001,2]
[356044086,1741834240901,-1560.42702355,0.0001,2]
[356044087,1741834241135,-41846.32229942,0.0001,2]
[356044136,1741834244477,-4708.55207969,0.0001,2]
[356044144,1741834246119,-440.2255406,0.0001,2]
[356044145,1741834246131,-16074.58931408,0.0001,2]
[356044146,1741834246142,-4995.79428781,0.0001,2]
[356044147,1741834246175,-3449.0,0.0001,2]
[356044148,1741834246229,-5236.42979656,0.0001,2]
[356044149,1741834246240,-557.03393257,0.0001,2]
[356044150,1741834246441,-1718.69375,0.0001,2]
[356044151,1741834246452,-1729.24609705,0.0001,2]
[356044152,1741834246472,-710.81898075,0.0001,2]
[356044153,1741834246484,-37499.9999998,0.0001,2]
[356044154,1741834246496,-20500.0,0.0001,2]
[356044158,1741834923856,-160.25637533,9.799e-05,2]
[356044160,1741835338195,621.52,8.219e-05,2]
[356044178,1741835432884,-550.0,9.686e-05,2]
[356044179,1741835432894,-88.65289464,9.686e-05,2]
[356044180,1741835432906,-61.34710536,9.686e-05,2]
[356044181,1741835432915,-300.0,9.731e-05,2]
[356044182,1741835432925,-312.65589464,9.732e-05,2]
[356044183,1741835432937,-3148.97995,9.732e-05,2]
[356044184,1741835432977,-541.02982009,9.732e-05,2]
[356044185,1741835433030,-19897.33433527,9.732e-05,2]
[356044186,1741835433040,-176.108,9.8e-05,2]
[356044187,1741835433050,-3036.918,9.8e-05,2]
[356044188,1741835433059,-477.03392979,9.8e-05,2]
[356044189,1741835433069,-150.0,9.804e-05,2]
[356044190,1741835433079,-1012.7468567,9.899e-05,2]
[356044191,1741835433088,-150.0,9.899e-05,2]
[356044192,1741835433098,-2521.6935,9.9e-05,2]
[356044193,1741835433108,-213.1609,9.9e-05,2]
[356044194,1741835433119,-500.0,9.9e-05,2]
[356044195,1741835433130,-789.3326,9.9e-05,2]
[356044196,1741835433140,-2875.7476,9.9e-05,2]
[356044197,1741835433150,-261.7044,9.9e-05,2]
[356044198,1741835433161,-566.537,9.9e-05,2]
[356044199,1741835433172,-1000.0,9.9e-05,2]
[356044200,1741835433182,-160.2564,9.9e-05,2]
[356044201,1741835433191,-17648.37048183,9.9e-05,2]
[356044202,1741835433203,-1000.0,9.9e-05,2]
[356044203,1741835433234,-1158.5934276,9.9e-05,2]
[356044207,1741835438232,-3819.62466951,9.9e-05,2]
[356044208,1741835438244,-6210.17782106,9.9e-05,2]
[356044209,1741835438254,-1314.00005214,9.9e-05,2]
[356044210,1741835438295,-3685.99994786,9.9e-05,2]
[356044211,1741835438305,-350.0,9.999e-05,2]
[356044212,1741835438315,-500.0,9.999e-05,2]
[356044213,1741835438324,-500.0,9.999e-05,2]
[356044214,1741835438333,-500.0,9.999e-05,2]
[356044215,1741835438343,-394.70516966,9.999e-05,2]
[356044216,1741835438352,-500.0,9.999e-05,2]
[356044217,1741835438361,-500.0,9.999e-05,2]
[356044218,1741835438371,-500.0,9.999e-05,2]
[356044219,1741835438381,-500.0,9.999e-05,2]
[356044220,1741835438393,-1776.0,0.0001,2]
[356044221,1741835438403,-606.92297435,0.0001,2]
[356044222,1741835438411,-59586.37249547,0.0001,2]
[356044223,1741835438423,-840.47,0.0001,2]
[356044224,1741835438436,-1104.90149786,0.0001,2]
[356044225,1741835438447,-1426.51243399,0.0001,2]
[356044226,1741835438458,-1290.0,0.0001,2]
[356044227,1741835438472,-1011.85,0.0001,2]
[356044228,1741835438485,-900.48983006,0.0001,2]
[356044229,1741835438496,-2216.26776514,0.0001,2]
[356044230,1741835438507,-5602.70304,0.0001,2]
[356044240,1741835438628,-42353.59776739,0.0001,2]
[356044242,1741835438640,-612.60000005,0.0001,2]
[356044268,1741835440627,-309.85563922,0.0001,2]
[356044271,1741835440768,-64427.16302921,0.0001,2]
[356044272,1741835440779,-661595.48102223,0.0001,2]
[356044287,1741835443892,-2246.10097998,0.0001,2]
[356044288,1741835443904,-4897.1909532,0.0001,2]
[356044289,1741835443916,-9289.25953684,0.0001,2]
[356044295,1741835446350,-6860.7744594,0.0001,2]
[356044296,1741835446375,-1602.70349695,0.0001,2]
[356044297,1741835446579,-31376.91292843,0.0001,2]
[356044298,1741835446591,-5727.067215,0.0001,2]
[356044299,1741835451093,-1595.0,0.0001,2]
[356044300,1741835451119,-798405.0,0.0001,2]
[356044506,1741835642921,-300.0,9.8e-05,2]
[356044507,1741835645420,-417.29669107,9.8e-05,2]
[356044518,1741836489986,-209.33269334,9.5e-05,2]
[356044541,1741836631723,-980.67415975,9.5e-05,2]
[356044542,1741836631732,-1569.0,9.7e-05,2]
[356044543,1741836631741,-1500.0,9.718e-05,2]
[356044544,1741836631750,-363.77223569,9.8e-05,2]
[356044545,1741836631759,-1851.81213192,9.828e-05,2]
[356044546,1741836631768,-150.0,9.85e-05,2]
[356044547,1741836631780,-2985.2493,9.9e-05,2]
[356044548,1741836631789,-1584.04098314,9.9e-05,2]
[356044549,1741836631798,-1584.04098314,9.9e-05,2]
[356044550,1741836631807,-209.3327,9.9e-05,2]
[356044551,1741836631817,-508.1091,9.9e-05,2]
[356044552,1741836631826,-5000.0,9.9e-05,2]
[356044553,1741836631835,-150.0,9.919e-05,2]
[356044554,1741836631845,-150.0,9.998e-05,2]
[356044555,1741836631854,-14571.65225974,9.999e-05,2]
[356044556,1741836631863,-176.10929001,9.999e-05,2]
[356044558,1741836631873,-2429.534,9.999e-05,2]
[356044559,1741836631881,-350.0,9.999e-05,2]
[356044561,1741836631890,-20787.64700972,0.0001,2]
[356044562,1741836631902,-2347.49535776,0.0001,2]
[356044563,1741836631913,-6533.99523132,0.0001,2]
[356044566,1741836637594,-1848.58418204,0.0001,2]
[356044567,1741836637705,-8402.87019244,0.0001,2]
[356044569,1741836639530,-0.00822791,0.0001,2]
[356044570,1741836639541,-3537.08530993,0.0001,2]
[356044571,1741836639638,-254.98887991,0.0001,2]
[356044572,1741836639649,-4000.0,0.0001,2]
[356044573,1741836639696,-798.52623198,0.0001,2]
[356044574,1741836639708,-900.0,0.0001,2]
[356044575,1741836639718,-1030.82396,0.0001,2]
[356044578,1741836640043,-1000.0,0.0001,2]
[356044579,1741836640054,-2195.30000002,0.0001,2]
[356044580,1741836640066,-500.0,0.0001,2]
[356044581,1741836640077,-195862.67541697,0.0001,2]
[356044582,1741836640086,-1331.0,0.0001,2]
[356044583,1741836640096,-303.46148717,0.0001,2]
[356044584,1741836640105,-141210.84971843,0.0001,2]
[356044585,1741836640114,-387314.65742887,0.0001,2]
[356044593,1741836642511,-1055.81162449,0.0001,2]
[356044594,1741836642664,-7643.34046316,0.0001,2]
[356044595,1741836642677,-3163.5,0.0001,2]
[356044642,1741837831730,-150.0,9.786e-05,2]
[356044643,1741837831740,-150.0,9.869e-05,2]
[356044644,1741837831749,-172.8893,9.9e-05,2]
[356044645,1741837831759,-213.49685094,9.9e-05,2]
[356044646,1741837831783,-898.56913686,9.9e-05,2]
[356044647,1741837831814,-1387.9340122,9.9e-05,2]
[356044648,1741837831823,-4195.77188946,9.9e-05,2]
[356044649,1741837831835,-328.01300429,9.9e-05,2]
[356044650,1741837831900,-429.57417862,9.9e-05,2]
[356044651,1741837831911,-46.64092763,9.9e-05,2]
[356044652,1741837831921,-150.0,9.973e-05,2]
[356044653,1741837831930,-500.14350756,9.973e-05,2]
[356044654,1741837831940,-500.0,9.999e-05,2]
[356044655,1741837831949,-360.88314733,9.999e-05,2]
[356044656,1741837831958,-150.0,9.999e-05,2]
[356044657,1741837831968,-350.0,9.999e-05,2]
[356044658,1741837831978,-1436.0,0.0001,2]
[356044659,1741837831987,-536.34325965,0.0001,2]
[356044660,1741837831996,-34961.84708373,0.0001,2]
[356044714,1741837837650,-1071.07571475,9.8e-05,2]
[356044715,1741837837660,-1298.0,0.0001,2]
[356044716,1741837837669,-86135.90312424,0.0001,2]
[356044717,1741837837681,-65478.62111569,0.0001,2]
[356044718,1741837837929,-289.89607018,0.0001,2]
[356044739,1741837839906,-385.80594256,0.0001,2]
[356044740,1741837840011,-33740.95211351,0.0001,2]
[356044741,1741837840021,-692281.69193793,0.0001,2]
[356044742,1741837840033,-548.49492989,0.0001,2]
[356044743,1741837840044,-354.63427541,0.0001,2]
[356044744,1741837840055,-1684.56585934,0.0001,2]
[356044755,1741837842875,-1171.0,0.0001,2]
[356044756,1741837842885,-1428.98743998,0.0001,2]
[356044757,1741837842895,-8402.4,0.0001,2]
[356044758,1741837842906,-3549.96844399,0.0001,2]
[356044762,1741837845715,-5658.15359014,0.0001,2]
[356044763,1741837845727,-3104.192539,0.0001,2]
[356044764,1741837845935,-4672.00804507,0.0001,2]
[356044765,1741837845947,-388.46691482,0.0001,2]
[356044766,1741837845976,-311.70523352,0.0001,2]
[356044767,1741837845988,-927.6726426,0.0001,2]
[356044768,1741837845999,-879.41035815,0.0001,2]
[356044769,1741837846010,-543.2619752,0.0001,2]
[356044770,1741837846022,-570.96,0.0001,2]
[356044771,1741837846048,-379.89623438,0.0001,2]
[356044772,1741837846059,-8936.01055095,0.0001,2]
[356044773,1741837846160,-1936.62483291,0.0001,2]
[356044774,1741837846172,-335.30570427,0.0001,2]
[356044775,1741837846184,-769.686283,0.0001,2]
[356044776,1741837846196,-680.31065153,0.0001,2]
[356044777,1741837846207,-49213.03305148,0.0001,2]
[356044778,1741837846229,-257.28722731,0.0001,2]
[356044779,1741837846335,-470.22347517,0.0001,2]
[356044782,1741837994304,-345.92779086,9.552e-05,2]
[356044783,1741838040558,-157.0,9.407e-05,2]
[356044784,1741838058769,-160.25391245,9.096e-05,2]
[356044787,1741838161462,307.63,8.897e-05,2]
[356044793,1741838243730,2250.16,8.89e-05,2]
[356044796,1741838305340,1224.91,8.889e-05,2]
[356044797,1741838411652,250.0,8.887e-05,2]
[356044798,1741838551832,152.71,8.862e-05,2]
[356044799,1741838589567,-152.71,8.917e-05,2]
[356044800,1741838589601,-152.71,8.973e-05,2]
[356044801,1741838589637,-152.71,9.028e-05,2]
[356044802,1741838589671,-152.71,9.083e-05,2]
[356044803,1741838589778,-152.71,9.096e-05,2]
[356044804,1741838589790,-152.71,9.096e-05,2]
[356044805,1741838589816,-152.71,9.096e-05,2]
[356044806,1741838589856,-152.71,9.096e-05,2]
[356044807,1741838589868,-778.32,9.096e-05,2]
[356044808,1741838591045,-281.37687197,9.096e-05,2]
[356044814,1741838624752,-160.25637533,9e-05,2]
[356044817,1741838653679,23900.0,8.837e-05,2]
[356044818,1741838693007,167.15,8.839e-05,2]
[356044821,1741838763832,-89.74362467,9e-05,2]
[356044822,1741838763857,-150.0,9.048e-05,2]
[356044823,1741838763882,-169.20921558,9.096e-05,2]
[356044824,1741838763906,-150.0,9.116e-05,2]
[356044825,1741838763933,-152.71,9.139e-05,2]
[356044826,1741838763959,-152.71,9.194e-05,2]
[356044827,1741838763985,-152.71,9.25e-05,2]
[356044828,1741838764010,-152.71,9.305e-05,2]
[356044829,1741838764035,-3164.46355976,9.322e-05,2]
[356044830,1741838782736,300.0,8.867e-05,2]
[356044831,1741838860255,742.1,8.219e-05,2]
[356044832,1741838895219,1500.0,8.86e-05,2]
[356044833,1741838919265,13636.8,8.858e-05,2]
[356044834,1741838965641,1000.0,8.858e-05,2]
[356044835,1741838991040,178.5,8.886e-05,2]
[356044836,1741839013902,297.27,8.886e-05,2]
[356044838,1741839027716,843.66,8.857e-05,2]
[356044840,1741839031802,-12.58,9.407e-05,2]
[356044841,1741839031812,-150.0,9.48e-05,2]
[356044842,1741839031823,-117.68220914,9.552e-05,2]
[356044843,1741839031833,-150.0,9.562e-05,7]
[356044844,1741839031842,-200.0,9.7e-05,3]
[356044845,1741839031851,-150.0,9.724e-05,2]
[356044846,1741839031860,-150.0,9.725e-05,2]
[356044847,1741839031869,-150.0,9.727e-05,2]
[356044848,1741839031878,-150.0,9.729e-05,2]
[356044849,1741839031890,-300.0,9.731e-05,2]
[356044850,1741839031900,-2318.2100063,9.732e-05,2]
[356044851,1741839031909,-499.99,9.732e-05,2]
[356044852,1741839031918,-816.56,9.732e-05,2]
[356044853,1741839031928,-3729.92476284,9.732e-05,2]
[356044854,1741839031996,-3079.51141144,9.732e-05,2]
[356044855,1741839032007,-2501.25394069,9.732e-05,2]
[356044856,1741839032019,-123.29988503,9.732e-05,2]
[356044857,1741839032029,-150.99,9.732e-05,2]
[356044858,1741839032039,-19.20973921,9.732e-05,2]
[356044859,1741839032104,-980.78026079,9.732e-05,2]
[356044860,1741839032114,-8396.59122602,9.732e-05,2]
[356044861,1741839032214,-580.99624631,9.732e-05,2]
[356044876,1741839037692,-749.9699998,9.732e-05,2]
[356044877,1741839037769,-272.43252787,9.732e-05,2]
[356044878,1741839037778,-150.0,9.735e-05,2]
[356044879,1741839037788,-150.0,9.74e-05,2]
[356044880,1741839037798,-150.0,9.74e-05,2]
[356044881,1741839037819,-510.99503814,9.74e-05,2]
[356044882,1741839037833,-9550.20496186,9.74e-05,2]
[356044883,1741839037842,-150.0,9.746e-05,2]
[356044884,1741839037852,-150.0,9.746e-05,2]
[356044885,1741839037862,-150.0,9.747e-05,2]
[356044886,1741839037872,-150.0,9.751e-05,2]
[356044887,1741839037882,-799.74850516,9.754e-05,2]
[356044888,1741839037892,-150.0,9.756e-05,2]
[356044889,1741839037902,-150.0,9.757e-05,2]
[356044890,1741839037912,-150.0,9.757e-05,2]
[356044891,1741839037922,-150.0,9.763e-05,2]
[356044892,1741839037932,-150.0,9.766e-05,2]
[356044893,1741839037941,-150.0,9.766e-05,2]
[356044894,1741839037951,-150.0,9.77e-05,2]
[356044895,1741839037961,-150.0,9.77e-05,2]
[356044903,1741839038161,-3161.91551973,9.77e-05,2]
[356044904,1741839038182,-150.0,9.772e-05,2]
[356044905,1741839038191,-150.0,9.774e-05,2]
[356044906,1741839038201,-150.0,9.777e-05,2]
[356044907,1741839038210,-150.0,9.777e-05,2]
[356044908,1741839038220,-150.0,9.778e-05,2]
[356044909,1741839038229,-150.0,9.778e-05,2]
[356044910,1741839038239,-150.0,9.779e-05,2]
[356044911,1741839038248,-150.0,9.781e-05,2]
[356044912,1741839038258,-150.0,9.787e-05,2]
[356044913,1741839038268,-48.54171456,9.787e-05,2]
[356044914,1741839038280,-101.45828544,9.787e-05,2]
[356044915,1741839038290,-150.0,9.789e-05,2]
[356044916,1741839038299,-150.0,9.79e-05,2]
[356044917,1741839038308,-150.0,9.791e-05,2]
[356044918,1741839038318,-8.60033041,9.793e-05,2]
[356044919,1741839038329,-141.39966959,9.793e-05,2]
[356044920,1741839038339,-150.0,9.796e-05,2]
[356044921,1741839038348,-1000.0,9.799e-05,2]
[356044922,1741839038357,-1067.92734217,9.8e-05,2]
[356044923,1741839038367,-1081.8337603,9.8e-05,2]
[356044924,1741839038376,-500.0,9.8e-05,3]
[356044925,1741839038386,-150.0,9.801e-05,2]
[356044926,1741839038395,-150.0,9.814e-05,2]
[356044927,1741839038405,-150.0,9.814e-05,2]
[356044928,1741839038414,-150.0,9.817e-05,2]
[356044929,1741839038423,-150.0,9.819e-05,2]
[356044930,1741839038433,-150.0,9.825e-05,2]
[356044931,1741839038442,-150.0,9.835e-05,2]
[356044932,1741839038452,-150.0,9.84e-05,2]
[356044933,1741839038462,-150.0,9.842e-05,2]
[356044934,1741839038471,-150.0,9.843e-05,2]
[356044935,1741839038481,-107.63922794,9.843e-05,2]
[356044936,1741839038508,-42.36077206,9.843e-05,2]
[356044937,1741839038520,-150.0,9.843e-05,2]
[356044938,1741839038529,-150.0,9.846e-05,2]
[356044939,1741839038538,-150.0,9.847e-05,2]
[356044940,1741839038547,-150.0,9.848e-05,2]
[356044941,1741839038558,-150.0,9.848e-05,2]
[356044942,1741839038567,-150.0,9.85e-05,2]
[356044943,1741839038577,-56.3011764,9.851e-05,2]
[356044944,1741839038589,-93.6988236,9.851e-05,2]
[356044945,1741839038600,-150.0,9.852e-05,2]
[356044946,1741839038610,-150.0,9.852e-05,2]
[356044947,1741839038619,-150.0,9.853e-05,2]
[356044948,1741839038628,-150.0,9.853e-05,2]
[356044949,1741839038638,-150.0,9.854e-05,2]
[356044950,1741839038647,-150.0,9.855e-05,2]
[356044951,1741839038657,-150.0,9.856e-05,2]
[356044952,1741839038666,-150.0,9.856e-05,2]
[356044953,1741839038676,-150.0,9.86e-05,2]
[356044954,1741839038686,-150.0,9.864e-05,2]
[356044955,1741839038696,-150.0,9.866e-05,2]
[356044956,1741839038705,-150.0,9.866e-05,2]
[356044957,1741839038715,-150.0,9.871e-05,2]
[356044958,1741839038724,-150.0,9.871e-05,2]
[356044959,1741839038734,-150.0,9.876e-05,2]
[356044960,1741839038743,-152.64923034,9.877e-05,2]
[356044961,1741839038752,-150.0,9.887e-05,2]
[356044962,1741839038761,-150.0,9.887e-05,2]
[356044963,1741839038770,-150.0,9.896e-05,2]
[356044964,1741839038780,-150.0,9.897e-05,2]
[356044965,1741839038789,-150.0,9.898e-05,2]
[356044966,1741839038799,-1000.0,9.899e-05,2]
[356044967,1741839038808,-150.0,9.899e-05,2]
[356044968,1741839038818,-150.0,9.899e-05,2]
[356044969,1741839038828,-3223.0505,9.9e-05,2]
[356044970,1741839038838,-345.9278,9.9e-05,2]
[356044971,1741839038847,-3881.5789,9.9e-05,2]
[356044972,1741839038857,-595.13691219,9.9e-05,2]
[356044973,1741839038926,-302.19,9.9e-05,2]
[356044974,1741839038938,-530.97205036,9.9e-05,2]
[356044975,1741839038991,-191.03663745,9.9e-05,2]
[356044976,1741839039001,-2500.0,9.9e-05,2]
[356044977,1741839039010,-4951.0125,9.9e-05,2]
[356044978,1741839039020,-349.3877,9.9e-05,2]
[356044979,1741839039029,-1241.0646,9.9e-05,2]
[356044980,1741839039039,-3650.36856264,9.9e-05,2]
[356044991,1741839041129,-772.51470615,9.9e-05,2]
[356044992,1741839041166,-577.11673121,9.9e-05,2]
[356044993,1741839041175,-800.0,9.9e-05,3]
[356044994,1741839041184,-150.0,9.904e-05,2]
[356044995,1741839041194,-150.0,9.905e-05,2]
[356044996,1741839041204,-150.0,9.905e-05,2]
[356044997,1741839041213,-150.0,9.909e-05,2]
[356044998,1741839041223,-150.0,9.911e-05,2]
[356044999,1741839041232,-150.0,9.914e-05,2]
[356045000,1741839041242,-150.0,9.915e-05,2]
[356045001,1741839041251,-150.51250464,9.916e-05,2]
[356045002,1741839041260,-501.0,9.918e-05,2]
[356045003,1741839041270,-150.0,9.918e-05,2]
[356045004,1741839041279,-1000.0,9.92e-05,2]
[356045005,1741839041288,-150.0,9.92e-05,2]
[356045006,1741839041298,-150.0,9.926e-05,2]
[356045007,1741839041307,-150.0,9.931e-05,2]
[356045008,1741839041316,-150.0,9.932e-05,2]
[356045009,1741839041326,-150.0,9.933e-05,2]
[356045010,1741839041335,-150.0,9.934e-05,2]
[356045011,1741839041344,-150.0,9.938e-05,2]
[356045012,1741839041354,-150.0,9.942e-05,2]
[356045013,1741839041362,-150.0,9.947e-05,2]
[356045014,1741839041373,-150.0,9.947e-05,2]
[356045015,1741839041382,-868.08361754,9.949e-05,2]
[356045016,1741839041391,-1000.0,9.949e-05,2]
[356045017,1741839041400,-150.0,9.951e-05,2]
[356045018,1741839041409,-150.0,9.952e-05,2]
[356045019,1741839041418,-150.0,9.958e-05,2]
[356045020,1741839041428,-150.0,9.96e-05,2]
[356045021,1741839041437,-150.0,9.961e-05,2]
[356045022,1741839041446,-150.0,9.962e-05,2]
[356045023,1741839041456,-150.0,9.963e-05,2]
[356045024,1741839041465,-1000.0,9.966e-05,2]
[356045025,1741839041474,-150.0,9.968e-05,2]
[356045026,1741839041484,-150.0,9.969e-05,2]
[356045027,1741839041493,-150.0,9.969e-05,2]
[356045028,1741839041503,-2092.0,9.973e-05,2]
[356045029,1741839041514,-500.40253572,9.973e-05,2]
[356045030,1741839041525,-398.95953209,9.973e-05,2]
[356045031,1741839041534,-150.0,9.975e-05,2]
[356045032,1741839041543,-150.0,9.977e-05,2]
[356045033,1741839041555,-150.0,9.98e-05,2]
[356045034,1741839041564,-150.0,9.982e-05,2]
[356045035,1741839041574,-150.0,9.985e-05,2]
[356045036,1741839041583,-150.0,9.989e-05,2]
[356045037,1741839041597,-150.0,9.993e-05,2]
[356045038,1741839041612,-150.0,9.996e-05,2]
[356045039,1741839041621,-349.7096175,9.998e-05,2]
[356045040,1741839041631,-350.0,9.999e-05,2]
[356045041,1741839041640,-502.89914097,9.999e-05,7]
[356045042,1741839041650,-572.78743363,9.999e-05,2]
[356045043,1741839041659,-1140.0,0.0001,2]
[356045044,1741839041668,-384.61251607,0.0001,2]
[356045045,1741839041682,-245098.31699963,0.0001,2]
[356045046,1741839041692,-180523.05098532,0.0001,2]
[356045047,1741839041702,-282813.19243712,0.0001,2]
[356045056,1741839044072,-6266.8835218,0.0001,2]
[356045057,1741839044084,-15275.11202038,0.0001,2]
[356045058,1741839044096,-3275.53723411,0.0001,2]
[356045059,1741839044107,-798.19146953,0.0001,2]
[356045060,1741839044132,-1017.6830018,0.0001,2]
[356045061,1741839044144,-1189.88173211,0.0001,2]
[356045062,1741839044155,-446.51173508,0.0001,2]
[356045063,1741839044221,-2782.7,0.0001,2]
[356045064,1741839044935,-38224.79599848,0.0001,2]
[356045065,1741839044946,-800.069992,0.0001,2]
[356045066,1741839044957,-1712.43338813,0.0001,2]
[356045067,1741839044968,-3867.34,0.0001,2]
[356045068,1741839045110,-1152.9712,0.0001,2]
[356045069,1741839045127,-676.16000008,0.0001,2]
[356045070,1741839045151,-4325.99470946,0.0001,2]
[356045072,1741839045865,-278.866125,9.572e-05,2]
[356045073,1741839045875,-60750.44778732,0.0001,2]
[356045074,1741839045886,-1000.0,0.0001,2]
[356045075,1741839045898,-9771.2,0.0001,2]
[356045076,1741839045909,-1427.26659171,0.0001,2]
[356045077,1741839045921,-1159.3,0.0001,2]
[356045078,1741839045933,-500.0,0.0001,2]
[356045079,1741839045958,-38368.9285714,0.0001,2]
[356045080,1741839045969,-51749.28539569,0.0001,2]
[356045081,1741839046058,-4445.38032,0.0001,2]
[356045082,1741839046070,-11580.07687563,0.0001,2]
[356045083,1741839046161,-58637.07822018,0.0001,2]
[356045116,1741839161603,-208.23,8.921e-05,2]
[356045118,1741839167234,-300.0,8.917e-05,2]
[356045120,1741839172114,361.82954383,8.913e-05,2]
[356045121,1741839172863,-150.0,8.913e-05,2]
[356045124,1741839196568,-189.74476756,8.913e-05,2]
[356045125,1741839200476,1444.97,8.9e-05,2]
[356045128,1741839230431,3049.08,8.898e-05,2]
[356045132,1741839257782,-300.0,8.913e-05,2]
[356045136,1741839307095,-417.29669107,8.913e-05,2]
[356045137,1741839313565,-151.02340468,8.913e-05,2]
[356045138,1741839347786,1846.3,8.895e-05,2]
[356045141,1741839363707,-272.813291,8.913e-05,2]
[356045143,1741839366236,-151.83422081,8.913e-05,2]
[356045147,1741839419090,658.23,8.868e-05,2]
[356045150,1741839448772,250.0,8.895e-05,2]
[356045152,1741839474091,13192.42,8.895e-05,2]
[356045153,1741839537067,-684.48808105,8.913e-05,2]
[356045154,1741839537091,-550.0,8.915e-05,2]
[356045155,1741839537115,-1700.0,8.917e-05,2]
[356045156,1741839537140,-550.0,8.918e-05,2]
[356045157,1741839537166,-80.76,8.921e-05,2]
[356045158,1741839537190,-300.0,8.965e-05,2]
[356045159,1741839537214,-11134.75191895,8.966e-05,2]
[356045160,1741839551132,-2233.34228786,8.918e-05,2]
[356045161,1741839551157,-303.57808105,8.966e-05,2]
[356045164,1741839792655,165.83,8.875e-05,2]
[356045165,1741839821841,3468.81,8.875e-05,2]
[356045166,1741839859711,200.0,8.875e-05,2]
[356045167,1741839938728,1980.7,8.872e-05,2]
[356045168,1741839944373,187.16,8.87e-05,2]
[356045169,1741839944552,187.16,8.893e-05,2]
[356045170,1741840028166,1000.0,8.773e-05,2]
[356045171,1741840031406,-500.0,8.912e-05,2]
[356045172,1741840031432,-187.16,8.916e-05,2]
[356045173,1741840031457,-187.16,8.94e-05,2]
[356045174,1741840031482,-187.16,8.963e-05,2]
[356045175,1741840031506,-187.16,8.986e-05,2]
[356045176,1741840031532,-187.16,9.01e-05,2]
[356045177,1741840031556,-187.16,9.033e-05,2]